[Event "Titled Tuesday Blitz January 31 Late 2023"]
[White "Zhou, Qiyu"]
[Black "Sailer, Mike"]
[WhiteFideId "505161"]
[BlackFideId "2012901"]
[WhiteElo "2201"]
[BlackElo "2109"]
[Result "1-0"]
[Round "07"]
[TimeControl "180+2"]
[Date "2023.01.31"]
[WhiteClock "0:01:41"]
[BlackClock "0:00:19"]

1. e4 {[%clk 0:03:00]}  d5 {[%clk 0:02:59]} 2. exd5 {[%clk 0:03:00]}  Qxd5 {[%clk 0:02:58]} 3. Nc3 {[%clk 0:03:01]}  Qd6 {[%clk 0:02:58]} 4. Bc4 {[%clk 0:03:01]}  Nf6 {[%clk 0:02:57]} 5. d3 {[%clk 0:02:57]}  Nc6 {[%clk 0:02:54]} 6. Be3 {[%clk 0:02:54]}  Bg4 {[%clk 0:02:54]} 7. f3 {[%clk 0:02:54]}  Bf5 {[%clk 0:02:52]} 8. Qd2 {[%clk 0:02:49]}  e6 {[%clk 0:02:52]} 9. O-O-O {[%clk 0:02:48]}  O-O-O {[%clk 0:02:52]} 10. g4 {[%clk 0:02:47]}  Bg6 {[%clk 0:02:51]} 11. Kb1 {[%clk 0:02:39]}  Na5 {[%clk 0:02:45]} 12. Nb5 {[%clk 0:02:35]}  Nxc4 {[%clk 0:02:36]} 13. Nxd6+ {[%clk 0:02:34]}  Nxd6 {[%clk 0:02:30]} 14. Qf2 {[%clk 0:02:30]}  b6 {[%clk 0:02:25]} 15. Ne2 {[%clk 0:02:30]}  h6 {[%clk 0:02:16]} 16. Nf4 {[%clk 0:02:28]}  Bh7 {[%clk 0:02:16]} 17. h4 {[%clk 0:02:26]}  Be7 {[%clk 0:02:15]} 18. g5 {[%clk 0:02:21]}  Nd5 {[%clk 0:01:57]} 19. Nxd5 {[%clk 0:02:19]}  exd5 {[%clk 0:01:57]} 20. gxh6 {[%clk 0:02:17]}  gxh6 {[%clk 0:01:57]} 21. Bxh6 {[%clk 0:02:18]}  Nf5 {[%clk 0:01:45]} 22. Bg5 {[%clk 0:02:16]}  f6 {[%clk 0:01:44]} 23. Bf4 {[%clk 0:02:14]}  Kb7 {[%clk 0:01:30]} 24. h5 {[%clk 0:02:08]}  Bg8 {[%clk 0:01:08]} 25. h6 {[%clk 0:02:05]}  Bd6 {[%clk 0:01:05]} 26. Qd2 {[%clk 0:02:04]}  Rd7 {[%clk 0:00:59]} 27. Rdg1 {[%clk 0:02:02]}  Rdh7 {[%clk 0:00:57]} 28. Rg6 {[%clk 0:01:58]}  Be7 {[%clk 0:00:43]} 29. a4 {[%clk 0:01:49]}  Bf7 {[%clk 0:00:40]} 30. Rg2 {[%clk 0:01:48]}  d4 {[%clk 0:00:35]} 31. Rgh2 {[%clk 0:01:46]}  Bd5 {[%clk 0:00:34]} 32. Qf2 {[%clk 0:01:44]}  c5 {[%clk 0:00:31]} 33. Rh5 {[%clk 0:01:42]}  Be6 {[%clk 0:00:29]} 34. Qe2 {[%clk 0:01:41]}  Bd6 {[%clk 0:00:22]} 35. Bxd6 {[%clk 0:01:41]}  Nxd6 {[%clk 0:00:20]} 36. Qxe6 {[%clk 0:01:41]}  Nf7 {[%clk 0:00:18]} 37. Qxf6 {[%clk 0:01:40]}  Nxh6 {[%clk 0:00:18]} 38. Rxh6 {[%clk 0:01:40]}  Rxh6 {[%clk 0:00:18]} 39. Rxh6 {[%clk 0:01:41]}  Rxh6 {[%clk 0:00:19]} 40. Qxh6 {[%clk 0:01:41]} 1-0


[Site "https://www.chess.com"]

[Event "Titled Tuesday Blitz January 31 Late 2023"]
[White "Kalajzic, Ivan"]
[Black "Ortez, Andrea"]
[WhiteFideId "14506378"]
[BlackFideId "6702392"]
[WhiteElo "2062"]
[BlackElo "1961"]
[Result "0-1"]
[Round "07"]
[TimeControl "180+2"]
[Date "2023.01.31"]
[WhiteClock "0:00:07"]
[BlackClock "0:00:15"]

1. d4 {[%clk 0:02:56]}  d5 {[%clk 0:02:59]} 2. Nc3 {[%clk 0:02:55]}  e6 {[%clk 0:02:57]} 3. Nf3 {[%clk 0:02:53]}  Nf6 {[%clk 0:02:57]} 4. Bg5 {[%clk 0:02:53]}  Be7 {[%clk 0:02:56]} 5. Bxf6 {[%clk 0:02:54]}  Bxf6 {[%clk 0:02:56]} 6. e4 {[%clk 0:02:54]}  dxe4 {[%clk 0:02:55]} 7. Nxe4 {[%clk 0:02:54]}  Nd7 {[%clk 0:02:54]} 8. c3 {[%clk 0:02:54]}  O-O {[%clk 0:02:53]} 9. Bd3 {[%clk 0:02:54]}  e5 {[%clk 0:02:41]} 10. d5 {[%clk 0:02:50]}  Re8 {[%clk 0:01:50]} 11. Qc2 {[%clk 0:02:49]}  Nf8 {[%clk 0:01:45]} 12. O-O-O {[%clk 0:02:47]}  g6 {[%clk 0:01:42]} 13. h3 {[%clk 0:02:38]}  Bg7 {[%clk 0:01:41]} 14. g4 {[%clk 0:02:34]}  Qxd5 {[%clk 0:01:24]} 15. Kb1 {[%clk 0:02:15]}  Qc6 {[%clk 0:01:13]} 16. Qe2 {[%clk 0:02:12]}  a6 {[%clk 0:01:12]} 17. g5 {[%clk 0:02:08]}  Be6 {[%clk 0:00:57]} 18. Nf6+ {[%clk 0:01:52]}  Bxf6 {[%clk 0:00:54]} 19. gxf6 {[%clk 0:01:53]}  Bd5 {[%clk 0:00:48]} 20. Nxe5 {[%clk 0:01:14]}  Rxe5 {[%clk 0:00:36]} 21. Qxe5 {[%clk 0:01:15]}  Bxh1 {[%clk 0:00:27]} 22. Qg5 {[%clk 0:00:54]}  Re8 {[%clk 0:00:19]} 23. Bc2 {[%clk 0:00:47]}  Ne6 {[%clk 0:00:16]} 24. Qh6 {[%clk 0:00:44]}  Be4 {[%clk 0:00:15]} 25. Bxe4 {[%clk 0:00:19]}  Qxe4+ {[%clk 0:00:15]} 26. Ka1 {[%clk 0:00:20]}  Qf5 {[%clk 0:00:14]} 27. a3 {[%clk 0:00:14]}  Qxf6 {[%clk 0:00:13]} 28. Rd7 {[%clk 0:00:15]}  Re7 {[%clk 0:00:11]} 29. Qd2 {[%clk 0:00:14]}  Rxd7 {[%clk 0:00:11]} 30. Qxd7 {[%clk 0:00:15]}  Kg7 {[%clk 0:00:10]} 31. Qc8 {[%clk 0:00:14]}  Qxf2 {[%clk 0:00:09]} 32. Qxb7 {[%clk 0:00:13]}  Qe1+ {[%clk 0:00:07]} 33. Ka2 {[%clk 0:00:13]}  a5 {[%clk 0:00:06]} 34. Qb5 {[%clk 0:00:11]}  Qe4 {[%clk 0:00:05]} 35. Qxa5 {[%clk 0:00:10]}  Qf3 {[%clk 0:00:04]} 36. Qe5+ {[%clk 0:00:09]}  Qf6 {[%clk 0:00:04]} 37. Qd5 {[%clk 0:00:07]}  h6 {[%clk 0:00:04]} 38. a4 {[%clk 0:00:07]}  h5 {[%clk 0:00:05]} 39. a5 {[%clk 0:00:07]}  c6 {[%clk 0:00:05]} 40. a6 {[%clk 0:00:08]}  cxd5 {[%clk 0:00:05]} 41. a7 {[%clk 0:00:08]}  Qd8 {[%clk 0:00:06]} 42. b4 {[%clk 0:00:07]}  Qa8 {[%clk 0:00:07]} 43. Kb3 {[%clk 0:00:08]}  Qxa7 {[%clk 0:00:08]} 44. Kc2 {[%clk 0:00:08]}  Qb7 {[%clk 0:00:09]} 45. Kd3 {[%clk 0:00:09]}  Qc6 {[%clk 0:00:09]} 46. Kc2 {[%clk 0:00:09]}  Qc4 {[%clk 0:00:10]} 47. h4 {[%clk 0:00:09]}  d4 {[%clk 0:00:11]} 48. b5 {[%clk 0:00:09]}  Qxc3+ {[%clk 0:00:12]} 49. Kb1 {[%clk 0:00:09]}  Qb4+ {[%clk 0:00:12]} 50. Ka2 {[%clk 0:00:08]}  Qxb5 {[%clk 0:00:13]} 51. Ka3 {[%clk 0:00:08]}  Qf5 {[%clk 0:00:14]} 52. Ka2 {[%clk 0:00:09]}  Qg4 {[%clk 0:00:15]} 53. Kb1 {[%clk 0:00:09]}  Qxh4 {[%clk 0:00:16]} 54. Kc2 {[%clk 0:00:10]}  Qf4 {[%clk 0:00:17]} 55. Kd3 {[%clk 0:00:11]}  Qf5+ {[%clk 0:00:18]} 56. Kc4 {[%clk 0:00:11]}  Qe4 {[%clk 0:00:19]} 57. Kb5 {[%clk 0:00:11]}  d3 {[%clk 0:00:20]} 58. Kb6 {[%clk 0:00:09]}  d2 {[%clk 0:00:21]} 59. Ka7 {[%clk 0:00:08]}  d1=Q {[%clk 0:00:21]} 60. Kb8 {[%clk 0:00:09]}  Qd8+ {[%clk 0:00:18]} 61. Ka7 {[%clk 0:00:08]}  Qda8+ {[%clk 0:00:18]} 62. Kb6 {[%clk 0:00:07]}  Qab7+ {[%clk 0:00:16]} 63. Ka5 {[%clk 0:00:07]}  Qeb4# {[%clk 0:00:15]} 0-1


[Site "https://www.chess.com"]

[Event "Titled Tuesday Blitz January 31 Late 2023"]
[White "Bacrot, Etienne"]
[Black "Dubov, Daniil"]
[WhiteFideId "605506"]
[BlackFideId "24126055"]
[WhiteElo "2667"]
[BlackElo "2708"]
[Result "0-1"]
[Round "08"]
[TimeControl "180+2"]
[Date "2023.01.31"]
[WhiteClock "0:01:53"]
[BlackClock "0:02:07"]

1. e4 {[%clk 0:03:00]}  c5 {[%clk 0:02:59]} 2. Nf3 {[%clk 0:03:01]}  e6 {[%clk 0:02:59]} 3. d4 {[%clk 0:03:00]}  cxd4 {[%clk 0:03:00]} 4. Nxd4 {[%clk 0:03:01]}  Nf6 {[%clk 0:03:01]} 5. Nc3 {[%clk 0:03:00]}  Nc6 {[%clk 0:03:01]} 6. Nxc6 {[%clk 0:03:00]}  bxc6 {[%clk 0:03:01]} 7. e5 {[%clk 0:03:00]}  Nd5 {[%clk 0:03:02]} 8. Ne4 {[%clk 0:03:01]}  Qc7 {[%clk 0:03:03]} 9. f4 {[%clk 0:03:00]}  Rb8 {[%clk 0:03:03]} 10. c4 {[%clk 0:02:59]}  Bb4+ {[%clk 0:03:02]} 11. Ke2 {[%clk 0:02:47]}  O-O {[%clk 0:03:02]} 12. cxd5 {[%clk 0:02:46]}  cxd5 {[%clk 0:03:01]} 13. Ng5 {[%clk 0:02:47]}  f6 {[%clk 0:02:59]} 14. exf6 {[%clk 0:02:46]}  Rxf6 {[%clk 0:02:57]} 15. Qd3 {[%clk 0:02:42]}  Rf5 {[%clk 0:02:39]} 16. g4 {[%clk 0:02:35]}  Rxg5 {[%clk 0:02:24]} 17. fxg5 {[%clk 0:02:34]}  Ba6 {[%clk 0:02:12]} 18. Qxa6 {[%clk 0:01:57]}  Qc2+ {[%clk 0:02:11]} 19. Kf3 {[%clk 0:01:57]}  Qe4+ {[%clk 0:02:10]} 20. Kg3 {[%clk 0:01:53]}  Be1+ {[%clk 0:02:07]} 0-1


[Site "https://www.chess.com"]

[Event "Titled Tuesday Blitz January 31 Late 2023"]
[White "Svane, Rasmus"]
[Black "Andreikin, Dmitry"]
[WhiteFideId "4657101"]
[BlackFideId "4158814"]
[WhiteElo "2623"]
[BlackElo "2729"]
[Result "0-1"]
[Round "08"]
[TimeControl "180+2"]
[Date "2023.01.31"]
[WhiteClock "0:00:02"]
[BlackClock "0:00:04"]

1. Nf3 {[%clk 0:03:00]}  d5 {[%clk 0:02:59]} 2. g3 {[%clk 0:03:00]}  g6 {[%clk 0:02:55]} 3. Bg2 {[%clk 0:03:00]}  Bg7 {[%clk 0:02:56]} 4. d4 {[%clk 0:03:01]}  Nf6 {[%clk 0:02:55]} 5. O-O {[%clk 0:03:01]}  O-O {[%clk 0:02:55]} 6. c4 {[%clk 0:03:02]}  c6 {[%clk 0:02:55]} 7. Qb3 {[%clk 0:03:02]}  Qb6 {[%clk 0:02:54]} 8. Nc3 {[%clk 0:03:02]}  Rd8 {[%clk 0:02:53]} 9. Bd2 {[%clk 0:03:02]}  Be6 {[%clk 0:02:52]} 10. Na4 {[%clk 0:02:58]}  Qc7 {[%clk 0:02:48]} 11. Nc5 {[%clk 0:02:52]}  Bc8 {[%clk 0:02:49]} 12. cxd5 {[%clk 0:02:49]}  cxd5 {[%clk 0:02:46]} 13. Rfc1 {[%clk 0:02:47]}  Nc6 {[%clk 0:02:46]} 14. Bf4 {[%clk 0:02:22]}  Qb6 {[%clk 0:02:47]} 15. e3 {[%clk 0:02:23]}  h6 {[%clk 0:02:35]} 16. Ne5 {[%clk 0:02:05]}  Na5 {[%clk 0:02:03]} 17. Qxb6 {[%clk 0:01:53]}  axb6 {[%clk 0:02:04]} 18. Na4 {[%clk 0:01:54]}  Ra6 {[%clk 0:01:53]} 19. Bf1 {[%clk 0:01:33]}  Nc4 {[%clk 0:01:53]} 20. Nxc4 {[%clk 0:01:19]}  dxc4 {[%clk 0:01:53]} 21. b3 {[%clk 0:01:14]}  b5 {[%clk 0:01:34]} 22. Nc5 {[%clk 0:01:14]}  Rc6 {[%clk 0:01:26]} 23. bxc4 {[%clk 0:01:14]}  bxc4 {[%clk 0:01:15]} 24. Bxc4 {[%clk 0:01:15]}  Nh5 {[%clk 0:01:03]} 25. Be2 {[%clk 0:00:53]}  Nxf4 {[%clk 0:00:54]} 26. gxf4 {[%clk 0:00:54]}  g5 {[%clk 0:00:50]} 27. fxg5 {[%clk 0:00:47]}  hxg5 {[%clk 0:00:51]} 28. Bf3 {[%clk 0:00:43]}  Rc7 {[%clk 0:00:43]} 29. Nxb7 {[%clk 0:00:38]}  Bxb7 {[%clk 0:00:33]} 30. Rxc7 {[%clk 0:00:36]}  Bxf3 {[%clk 0:00:34]} 31. Rxe7 {[%clk 0:00:34]}  Bf8 {[%clk 0:00:23]} 32. Re5 {[%clk 0:00:31]}  g4 {[%clk 0:00:24]} 33. a4 {[%clk 0:00:29]}  Bd6 {[%clk 0:00:20]} 34. Rg5+ {[%clk 0:00:29]}  Kh7 {[%clk 0:00:21]} 35. a5 {[%clk 0:00:29]}  Kh6 {[%clk 0:00:17]} 36. Rb5 {[%clk 0:00:28]}  Kg7 {[%clk 0:00:17]} 37. Rg5+ {[%clk 0:00:14]}  Kf6 {[%clk 0:00:15]} 38. Rb5 {[%clk 0:00:08]}  Rh8 {[%clk 0:00:12]} 39. Rb6 {[%clk 0:00:08]}  Ke7 {[%clk 0:00:12]} 40. Rxd6 {[%clk 0:00:04]}  Kxd6 {[%clk 0:00:13]} 41. a6 {[%clk 0:00:05]}  Ra8 {[%clk 0:00:12]} 42. a7 {[%clk 0:00:05]}  Kc6 {[%clk 0:00:12]} 43. h3 {[%clk 0:00:04]}  gxh3 {[%clk 0:00:11]} 44. Kh2 {[%clk 0:00:05]}  Kb6 {[%clk 0:00:08]} 45. Kxh3 {[%clk 0:00:04]}  Rg8 {[%clk 0:00:08]} 46. Rb1+ {[%clk 0:00:03]}  Kxa7 {[%clk 0:00:07]} 47. Rb5 {[%clk 0:00:03]}  Ka6 {[%clk 0:00:07]} 48. Rc5 {[%clk 0:00:04]}  Kb6 {[%clk 0:00:07]} 49. Re5 {[%clk 0:00:04]}  Kc6 {[%clk 0:00:06]} 50. Re7 {[%clk 0:00:04]}  Bd5 {[%clk 0:00:06]} 51. e4 {[%clk 0:00:04]}  Kd6 {[%clk 0:00:05]} 52. Re5 {[%clk 0:00:04]}  Bc6 {[%clk 0:00:02]} 53. Kh2 {[%clk 0:00:02]}  f6 {[%clk 0:00:02]} 54. Rf5 {[%clk 0:00:03]}  Bxe4 {[%clk 0:00:02]} 55. Rxf6+ {[%clk 0:00:03]}  Kd5 {[%clk 0:00:03]} 56. Rf4 {[%clk 0:00:04]}  Rg7 {[%clk 0:00:03]} 57. f3 {[%clk 0:00:04]}  Bd3 {[%clk 0:00:03]} 58. Rg4 {[%clk 0:00:05]}  Rf7 {[%clk 0:00:03]} 59. Kg3 {[%clk 0:00:05]}  Be2 {[%clk 0:00:03]} 60. Rf4 {[%clk 0:00:06]}  Rg7+ {[%clk 0:00:03]} 61. Kf2 {[%clk 0:00:06]}  Bd3 {[%clk 0:00:04]} 62. Ke3 {[%clk 0:00:07]}  Bb1 {[%clk 0:00:04]} 63. Rh4 {[%clk 0:00:07]}  Re7+ {[%clk 0:00:04]} 64. Kf2 {[%clk 0:00:07]}  Bf5 {[%clk 0:00:05]} 65. Rf4 {[%clk 0:00:08]}  Be6 {[%clk 0:00:04]} 66. Rh4 {[%clk 0:00:08]}  Rf7 {[%clk 0:00:05]} 67. Ke3 {[%clk 0:00:08]}  Bf5 {[%clk 0:00:04]} 68. Rf4 {[%clk 0:00:08]}  Re7+ {[%clk 0:00:04]} 69. Kf2 {[%clk 0:00:09]}  Bd3 {[%clk 0:00:04]} 70. Rh4 {[%clk 0:00:09]}  Re2+ {[%clk 0:00:05]} 71. Kg3 {[%clk 0:00:09]}  Bc2 {[%clk 0:00:05]} 72. Rf4 {[%clk 0:00:09]}  Rd2 {[%clk 0:00:04]} 73. Rh4 {[%clk 0:00:09]}  Bd3 {[%clk 0:00:05]} 74. Rf4 {[%clk 0:00:09]}  Bb1 {[%clk 0:00:04]} 75. Rh4 {[%clk 0:00:09]}  Ba2 {[%clk 0:00:05]} 76. Rf4 {[%clk 0:00:09]}  Bc4 {[%clk 0:00:06]} 77. Rh4 {[%clk 0:00:09]}  Rd3 {[%clk 0:00:06]} 78. Kf2 {[%clk 0:00:09]}  Rc3 {[%clk 0:00:07]} 79. Kg3 {[%clk 0:00:09]}  Be2 {[%clk 0:00:07]} 80. Rf4 {[%clk 0:00:10]}  Bd1 {[%clk 0:00:07]} 81. Kf2 {[%clk 0:00:10]}  Rd3 {[%clk 0:00:08]} 82. Kg3 {[%clk 0:00:11]}  Bb3 {[%clk 0:00:07]} 83. Kf2 {[%clk 0:00:11]}  Kd6 {[%clk 0:00:08]} 84. Kg3 {[%clk 0:00:12]}  Bd5 {[%clk 0:00:08]} 85. Kf2 {[%clk 0:00:12]}  Kc6 {[%clk 0:00:09]} 86. Kg3 {[%clk 0:00:12]}  Kb5 {[%clk 0:00:09]} 87. Kf2 {[%clk 0:00:13]}  Kc4 {[%clk 0:00:10]} 88. Kg3 {[%clk 0:00:12]}  Kc3 {[%clk 0:00:10]} 89. Kf2 {[%clk 0:00:13]}  Kd2 {[%clk 0:00:11]} 90. Rf5 {[%clk 0:00:12]}  Rxd4 {[%clk 0:00:11]} 91. Kg3 {[%clk 0:00:12]}  Ke3 {[%clk 0:00:11]} 92. Re5+ {[%clk 0:00:13]}  Kd3 {[%clk 0:00:12]} 93. Re1 {[%clk 0:00:12]}  Kc4 {[%clk 0:00:07]} 94. Rc1+ {[%clk 0:00:10]}  Kb5 {[%clk 0:00:05]} 95. f4 {[%clk 0:00:10]}  Be6 {[%clk 0:00:04]} 96. Re1 {[%clk 0:00:10]}  Bd7 {[%clk 0:00:04]} 97. Re5+ {[%clk 0:00:08]}  Kc6 {[%clk 0:00:05]} 98. Re1 {[%clk 0:00:07]}  Kd6 {[%clk 0:00:05]} 99. Re3 {[%clk 0:00:07]}  Bf5 {[%clk 0:00:05]} 100. Re5 {[%clk 0:00:07]}  Rd3+ {[%clk 0:00:04]} 101. Kh4 {[%clk 0:00:07]}  Be6 {[%clk 0:00:05]} 102. Kg5 {[%clk 0:00:07]}  Rf3 {[%clk 0:00:05]} 103. Re1 {[%clk 0:00:07]}  Bd5 {[%clk 0:00:05]} 104. f5 {[%clk 0:00:06]}  Bc4 {[%clk 0:00:05]} 105. f6 {[%clk 0:00:06]}  Bf7 {[%clk 0:00:05]} 106. Re7 {[%clk 0:00:06]}  Be6 {[%clk 0:00:05]} 107. Re8 {[%clk 0:00:06]}  Ke5 {[%clk 0:00:05]} 108. Rf8 {[%clk 0:00:05]}  Rg3+ {[%clk 0:00:05]} 109. Kh6 {[%clk 0:00:04]}  Rg1 {[%clk 0:00:04]} 110. Rb8 {[%clk 0:00:04]}  Kxf6 {[%clk 0:00:04]} 111. Rb5 {[%clk 0:00:01]}  Bf5 {[%clk 0:00:04]} 112. Rb6+ {[%clk 0:00:01]}  Be6 {[%clk 0:00:05]} 113. Rb5 {[%clk 0:00:02]}  Rg8 {[%clk 0:00:05]} 114. Kh7 {[%clk 0:00:02]}  Rg6 {[%clk 0:00:05]} 115. Rc5 {[%clk 0:00:01]}  Rg4 {[%clk 0:00:05]} 116. Kh6 {[%clk 0:00:02]}  Rg2 {[%clk 0:00:05]} 117. Rb5 {[%clk 0:00:02]}  Bc4 {[%clk 0:00:04]} 118. Rb6+ {[%clk 0:00:01]}  Be6 {[%clk 0:00:05]} 119. Rc6 {[%clk 0:00:02]}  Rh2# {[%clk 0:00:04]} 0-1


[Site "https://www.chess.com"]

[Event "Titled Tuesday Blitz January 31 Late 2023"]
[White "Caruana, Fabiano"]
[Black "Chigaev, Maksim"]
[WhiteFideId "2020009"]
[BlackFideId "4108116"]
[WhiteElo "2764"]
[BlackElo "2628"]
[Result "1-0"]
[Round "08"]
[TimeControl "180+2"]
[Date "2023.01.31"]
[WhiteClock "0:00:05"]
[BlackClock "0:00:04"]

1. d4 {[%clk 0:03:00]}  Nf6 {[%clk 0:03:00]} 2. Nf3 {[%clk 0:03:01]}  g6 {[%clk 0:03:00]} 3. Bf4 {[%clk 0:03:01]}  Bg7 {[%clk 0:03:00]} 4. e3 {[%clk 0:03:02]}  O-O {[%clk 0:02:59]} 5. h3 {[%clk 0:03:02]}  c5 {[%clk 0:02:59]} 6. c3 {[%clk 0:03:02]}  Qb6 {[%clk 0:03:00]} 7. Qb3 {[%clk 0:03:00]}  d6 {[%clk 0:03:01]} 8. Nbd2 {[%clk 0:03:00]}  Be6 {[%clk 0:03:01]} 9. Bc4 {[%clk 0:03:00]}  Bxc4 {[%clk 0:03:01]} 10. Nxc4 {[%clk 0:03:01]}  Qc7 {[%clk 0:02:57]} 11. O-O {[%clk 0:03:00]}  Nbd7 {[%clk 0:02:57]} 12. Rfd1 {[%clk 0:02:59]}  a6 {[%clk 0:02:55]} 13. a4 {[%clk 0:02:57]}  b6 {[%clk 0:02:55]} 14. Ncd2 {[%clk 0:02:54]}  Qc6 {[%clk 0:02:52]} 15. Qc2 {[%clk 0:02:49]}  cxd4 {[%clk 0:02:39]} 16. exd4 {[%clk 0:02:49]}  b5 {[%clk 0:02:39]} 17. axb5 {[%clk 0:02:37]}  axb5 {[%clk 0:02:40]} 18. Qd3 {[%clk 0:02:38]}  Nd5 {[%clk 0:02:34]} 19. Be3 {[%clk 0:02:33]}  N7b6 {[%clk 0:02:34]} 20. Re1 {[%clk 0:02:22]}  Nc4 {[%clk 0:02:27]} 21. Nxc4 {[%clk 0:02:22]}  bxc4 {[%clk 0:02:27]} 22. Qe2 {[%clk 0:02:22]}  Rab8 {[%clk 0:02:19]} 23. Ra2 {[%clk 0:02:15]}  Rfc8 {[%clk 0:02:08]} 24. Rea1 {[%clk 0:02:15]}  h6 {[%clk 0:02:07]} 25. Ra4 {[%clk 0:02:06]}  Rb3 {[%clk 0:01:39]} 26. Bc1 {[%clk 0:02:04]}  Rb7 {[%clk 0:01:33]} 27. g3 {[%clk 0:01:58]}  Kh7 {[%clk 0:01:30]} 28. h4 {[%clk 0:01:57]}  e6 {[%clk 0:01:23]} 29. Nd2 {[%clk 0:01:48]}  Nb6 {[%clk 0:01:19]} 30. Ra5 {[%clk 0:01:49]}  d5 {[%clk 0:01:00]} 31. Nf3 {[%clk 0:01:40]}  Nd7 {[%clk 0:00:50]} 32. Bf4 {[%clk 0:01:38]}  Qb6 {[%clk 0:00:50]} 33. R1a2 {[%clk 0:01:37]}  Nf6 {[%clk 0:00:39]} 34. Ne5 {[%clk 0:01:32]}  Ne4 {[%clk 0:00:33]} 35. Ra6 {[%clk 0:01:30]}  Qd8 {[%clk 0:00:29]} 36. Ra7 {[%clk 0:01:11]}  Qe7 {[%clk 0:00:22]} 37. R7a6 {[%clk 0:00:58]}  Qe8 {[%clk 0:00:22]} 38. Qc2 {[%clk 0:00:55]}  f6 {[%clk 0:00:19]} 39. Nf3 {[%clk 0:00:50]}  g5 {[%clk 0:00:19]} 40. Be3 {[%clk 0:00:43]}  Rc6 {[%clk 0:00:10]} 41. Nd2 {[%clk 0:00:34]}  Rxa6 {[%clk 0:00:09]} 42. Rxa6 {[%clk 0:00:35]}  Qg6 {[%clk 0:00:09]} 43. h5 {[%clk 0:00:18]}  Qf5 {[%clk 0:00:08]} 44. Nxe4 {[%clk 0:00:19]}  dxe4 {[%clk 0:00:08]} 45. Ra4 {[%clk 0:00:10]}  Qf3 {[%clk 0:00:07]} 46. Rxc4 {[%clk 0:00:10]}  f5 {[%clk 0:00:08]} 47. Bd2 {[%clk 0:00:06]}  Ra7 {[%clk 0:00:07]} 48. Ra4 {[%clk 0:00:05]}  Rxa4 {[%clk 0:00:06]} 49. Qxa4 {[%clk 0:00:06]}  f4 {[%clk 0:00:06]} 50. Be1 {[%clk 0:00:03]}  Qe2 {[%clk 0:00:06]} 51. Qa1 {[%clk 0:00:03]}  e3 {[%clk 0:00:06]} 52. fxe3 {[%clk 0:00:02]}  fxe3 {[%clk 0:00:04]} 53. Qb1+ {[%clk 0:00:03]}  Kh8 {[%clk 0:00:04]} 54. b4 {[%clk 0:00:03]}  Qf3 {[%clk 0:00:03]} 55. b5 {[%clk 0:00:04]}  e2 {[%clk 0:00:02]} 56. Bf2 {[%clk 0:00:04]}  Qxc3 {[%clk 0:00:02]} 57. b6 {[%clk 0:00:04]}  Bxd4 {[%clk 0:00:03]} 58. Bxd4+ {[%clk 0:00:03]}  Qxd4+ {[%clk 0:00:03]} 59. Kg2 {[%clk 0:00:03]}  Qd5+ {[%clk 0:00:02]} 60. Kf2 {[%clk 0:00:03]}  e1=Q+ {[%clk 0:00:02]} 61. Qxe1 {[%clk 0:00:02]}  Qf5+ {[%clk 0:00:02]} 62. Kg2 {[%clk 0:00:02]}  Qd5+ {[%clk 0:00:02]} 63. Kg1 {[%clk 0:00:03]}  Qc5+ {[%clk 0:00:02]} 64. Qf2 {[%clk 0:00:03]}  Qc1+ {[%clk 0:00:02]} 65. Kh2 {[%clk 0:00:04]}  Qb1 {[%clk 0:00:02]} 66. Kg2 {[%clk 0:00:03]}  Qe4+ {[%clk 0:00:01]} 67. Kh2 {[%clk 0:00:03]}  Qb4 {[%clk 0:00:02]} 68. Qe3 {[%clk 0:00:03]}  Qb2+ {[%clk 0:00:02]} 69. Kh3 {[%clk 0:00:03]}  Kg7 {[%clk 0:00:01]} 70. Qxe6 {[%clk 0:00:03]}  Qb5 {[%clk 0:00:01]} 71. Qg6+ {[%clk 0:00:03]}  Kf8 {[%clk 0:00:02]} 72. Qxh6+ {[%clk 0:00:04]}  Kf7 {[%clk 0:00:03]} 73. Qg6+ {[%clk 0:00:05]}  Ke7 {[%clk 0:00:03]} 74. Qg7+ {[%clk 0:00:04]}  Ke6 {[%clk 0:00:04]} 75. Qg6+ {[%clk 0:00:04]}  Ke7 {[%clk 0:00:04]} 76. Qg7+ {[%clk 0:00:04]}  Ke6 {[%clk 0:00:04]} 77. Qg8+ {[%clk 0:00:04]}  Kf5 {[%clk 0:00:04]} 78. Qf7+ {[%clk 0:00:04]}  Ke4 {[%clk 0:00:05]} 79. h6 {[%clk 0:00:03]}  Qxb6 {[%clk 0:00:03]} 80. Qe7+ {[%clk 0:00:01]}  Kf5 {[%clk 0:00:03]} 81. Qf7+ {[%clk 0:00:02]}  Ke4 {[%clk 0:00:03]} 82. Qh5 {[%clk 0:00:02]}  Qg1 {[%clk 0:00:01]} 83. Qg4+ {[%clk 0:00:03]}  Kd5 {[%clk 0:00:01]} 84. Qxg5+ {[%clk 0:00:03]}  Ke4 {[%clk 0:00:02]} 85. Qg4+ {[%clk 0:00:03]}  Ke5 {[%clk 0:00:02]} 86. Qf4+ {[%clk 0:00:04]}  Ke6 {[%clk 0:00:03]} 87. Kg4 {[%clk 0:00:05]}  Qd1+ {[%clk 0:00:03]} 88. Kg5 {[%clk 0:00:05]}  Qd5+ {[%clk 0:00:03]} 89. Kg6 {[%clk 0:00:06]}  Qd3+ {[%clk 0:00:04]} 90. Kh5 {[%clk 0:00:05]} 1-0


[Site "https://www.chess.com"]